fUSD/lending_fUSD_20260227
["ID","MTS","AMOUNT","RATE_DAILY","PERIOD"]
[406758273,1772161848799,-983.09649044,0.00018521,2]
[406758274,1772161848808,-504.20237615,0.00018521,2]
[406758275,1772161848819,-1020.55026084,0.00018521,2]
[406758276,1772161848828,-1000.0,0.00018521,2]
[406758277,1772161848838,-255.95,0.00018703,2]
[406758278,1772161848847,-500.0,0.0001871,2]
[406758279,1772161848857,-500.0,0.0001871,2]
[406758280,1772161848867,-500.0,0.0001871,2]
[406758281,1772161848881,-500.0,0.0001871,2]
[406758282,1772161848892,-500.0,0.0001871,2]
[406758283,1772161848901,-500.0,0.0001871,2]
[406758284,1772161848912,-500.0,0.0001871,2]
[406758285,1772161848923,-500.0,0.0001871,2]
[406758286,1772161848934,-597.47,0.0001871,2]
[406758287,1772161848943,-500.0,0.0001871,2]
[406758288,1772161848952,-500.0,0.0001871,2]
[406758289,1772161849071,-500.0,0.0001871,2]
[406758290,1772161849080,-500.0,0.0001871,2]
[406758291,1772161849090,-500.0,0.0001871,2]
[406758292,1772161849099,-500.0,0.0001871,2]
[406758293,1772161849108,-500.0,0.0001871,2]
[406758294,1772161849117,-500.0,0.0001871,2]
[406758295,1772161849126,-500.0,0.0001871,2]
[406758296,1772161849136,-500.0,0.0001871,2]
[406758297,1772161849146,-500.0,0.0001871,2]
[406758298,1772161849157,-500.0,0.0001871,2]
[406758299,1772161849166,-500.0,0.0001871,2]
[406758300,1772161849174,-500.0,0.0001871,2]
[406758301,1772161849183,-500.0,0.0001871,2]
[406758302,1772161849192,-500.0,0.0001871,2]
[406758303,1772161849201,-500.0,0.0001871,2]
[406758304,1772161849209,-500.0,0.0001871,2]
[406758305,1772161849218,-500.0,0.0001871,2]
[406758306,1772161849227,-500.0,0.0001871,2]
[406758307,1772161849239,-500.0,0.0001871,2]
[406758308,1772161849248,-500.0,0.0001871,2]
[406758309,1772161849257,-500.0,0.0001871,2]
[406758310,1772161849265,-500.0,0.0001871,2]
[406758311,1772161849274,-500.0,0.0001871,2]
[406758312,1772161849283,-500.0,0.0001871,2]
[406758313,1772161849292,-500.0,0.0001871,2]
[406758314,1772161849301,-500.0,0.0001871,2]
[406758315,1772161849309,-500.0,0.0001871,2]
[406758316,1772161849319,-500.0,0.0001871,2]
[406758317,1772161849328,-500.0,0.0001871,2]
[406758318,1772161849336,-500.0,0.0001871,2]
[406758319,1772161849347,-500.0,0.0001871,2]
[406758320,1772161849356,-500.0,0.0001871,2]
[406758321,1772161849365,-500.0,0.0001871,2]
[406758322,1772161849374,-500.0,0.0001871,2]
[406758323,1772161849384,-500.0,0.0001871,2]
[406758324,1772161849393,-500.0,0.0001871,2]
[406758325,1772161849402,-500.0,0.0001871,2]
[406758326,1772161849411,-500.0,0.0001871,2]
[406758327,1772161849421,-500.0,0.0001871,2]
[406758328,1772161849432,-500.0,0.0001871,2]
[406758329,1772161849441,-500.0,0.0001871,2]
[406758330,1772161849450,-500.0,0.0001871,2]
[406758331,1772161849459,-500.0,0.0001871,2]
[406758332,1772161849469,-500.0,0.0001871,2]
[406758333,1772161849483,-500.0,0.0001871,2]
[406758334,1772161849492,-390.6323178,0.0001871,2]
[406758335,1772161849501,-399.11457372,0.00018989,2]
[406758336,1772161849510,-350.0,0.00019,2]
[406758337,1772161849520,-419.4117279,0.00019,2]
[406758338,1772161849529,-1500.0,0.00019068,2]
[406758339,1772161849538,-1705.0,0.00019496,5]
[406758340,1772161849548,-1111.0,0.00019496,5]
[406758341,1772161849557,-203.60049859,0.00019616,2]
[406758342,1772161849566,-152.8213546,0.00019712,2]
[406758343,1772161849576,-500.0,0.00019787,2]
[406758344,1772161849586,-500.0,0.00019787,2]
[406758345,1772161849595,-500.0,0.00019787,2]
[406758346,1772161849605,-500.0,0.00019787,2]
[406758347,1772161849614,-500.0,0.00019787,2]
[406758348,1772161849623,-500.0,0.00019787,2]
[406758349,1772161849633,-500.0,0.00019787,2]
[406758350,1772161849644,-500.0,0.00019787,2]
[406758351,1772161849653,-500.0,0.00019787,2]
[406758352,1772161849663,-500.0,0.00019787,2]
[406758353,1772161849673,-500.0,0.00019787,2]
[406758354,1772161849683,-150.53885821,0.0002,20]
[406758355,1772161849692,-200.0,0.0002033,2]
[406758356,1772161849701,-269.0,0.0002033,2]
[406758357,1772161849710,-221.273,0.0002033,2]
[406758358,1772161849725,-250.0,0.0002033,2]
[406758359,1772161849734,-233.59,0.0002033,2]
[406758360,1772161849743,-160.705,0.0002033,2]
[406758361,1772161849753,-250.0,0.0002033,2]
[406758362,1772161849762,-192.473,0.0002033,2]
[406758363,1772161849772,-165.15,0.0002033,2]
[406758364,1772161849782,-213.725,0.0002033,2]
[406758365,1772161849792,-250.0,0.0002033,2]
[406758366,1772161849802,-235.545,0.0002033,2]
[406758367,1772161849811,-176.0,0.0002033,2]
[406758368,1772161849820,-1340.0,0.0002033,2]
[406758369,1772161849830,-618.0,0.0002033,2]
[406758370,1772161849839,-1041.0,0.0002033,2]
[406758371,1772161849848,-3498.0,0.0002033,2]
[406758372,1772161849857,-1277.0,0.0002033,2]
[406758373,1772161849866,-150.0,0.0002033,2]
[406758374,1772161849876,-1211.0,0.0002033,2]
[406758375,1772161849885,-921.0,0.0002033,2]
[406758376,1772161849894,-2456.0,0.0002033,2]
[406758377,1772161849903,-5983.0,0.0002033,2]
[406758378,1772161849912,-464.491,0.0002033,2]
[406758379,1772161849923,-504.0,0.00020527,6]
[406758380,1772161849932,-400.0,0.00021,2]
[406758381,1772161849941,-207.96,0.00021125,2]
[406758382,1772161849950,-500.0,0.00021519,2]
[406758383,1772161849959,-500.0,0.00021519,2]
[406758384,1772161849968,-500.0,0.00021519,2]
[406758385,1772161849978,-500.0,0.00021691,2]
[406758386,1772161849987,-500.0,0.00021691,2]
[406758387,1772161849997,-500.0,0.00021691,2]
[406758388,1772161850006,-381.07214064,0.00021691,2]
[406758389,1772161850015,-500.0,0.00021691,2]
[406758390,1772161850024,-500.0,0.00021691,2]
[406758391,1772161850034,-500.0,0.00021691,2]
[406758392,1772161850043,-500.0,0.00021691,2]
[406758393,1772161850053,-500.0,0.00021691,2]
[406758394,1772161850062,-500.0,0.00021691,2]
[406758395,1772161850072,-500.0,0.00021691,2]
[406758396,1772161850082,-500.0,0.00021691,2]
[406758397,1772161850093,-500.0,0.00021691,2]
[406758398,1772161850102,-500.0,0.00021691,2]
[406758399,1772161850112,-767.29,0.0002181,2]
[406758400,1772161850122,-199.72,0.00021918,2]
[406758401,1772161850131,-199.72,0.00021918,2]
[406758402,1772161850142,-199.72,0.00021918,2]
[406758403,1772161850151,-382.979,0.00022038,2]
[406758404,1772161850160,-1366.789,0.00022038,2]
[406758405,1772161850169,-199.72,0.00022137,2]
[406758406,1772161850178,-152.8213546,0.00022176,2]
[406758407,1772161850187,-845.0,0.00022343,2]
[406758408,1772161850196,-199.72,0.00022356,2]
[406758409,1772161850205,-199.72,0.00022575,2]
[406758410,1772161850214,-199.72,0.00022795,2]
[406758411,1772161850223,-450.0,0.00023,2]
[406758412,1772161850232,-210.85803395,0.00023,2]
[406758413,1772161850241,-199.72,0.00023014,2]
[406758414,1772161850250,-276.81765236,0.00023139,2]
[406758415,1772161850259,-500.0,0.00023228,2]
[406758416,1772161850268,-500.0,0.00023228,2]
[406758417,1772161850276,-500.0,0.00023228,2]
[406758418,1772161850285,-500.0,0.00023228,2]
[406758419,1772161850295,-504.0,0.0002323,9]
[406758420,1772161850304,-199.72,0.00023233,2]
[406758421,1772161850313,-150.0,0.0002333,2]
[406758422,1772161850323,-150.0,0.0002333,2]
[406758423,1772161850332,-150.0,0.0002333,2]
[406758424,1772161850341,-150.0,0.0002333,2]
[406758425,1772161850351,-150.0,0.0002333,2]
[406758426,1772161850360,-1340.0,0.0002333,2]
[406758427,1772161850369,-618.0,0.0002333,2]
[406758428,1772161850378,-1041.0,0.0002333,2]
[406758429,1772161850388,-3498.0,0.0002333,2]
[406758430,1772161850397,-1277.0,0.0002333,2]
[406758431,1772161850407,-1211.0,0.0002333,2]
[406758432,1772161850416,-921.0,0.0002333,2]
[406758433,1772161850426,-2456.0,0.0002333,2]
[406758434,1772161850436,-5983.0,0.0002333,2]
[406758435,1772161850445,-413.0,0.0002333,2]
[406758436,1772161850455,-152.0,0.00023379,3]
[406758437,1772161850466,-154.79138924,0.00023379,5]
[406758438,1772161850478,-399.11457372,0.00023383,2]
[406758439,1772161850488,-17385.25272531,0.00023426,2]
[406758440,1772161850497,-199.72,0.00023452,2]
[406758441,1772161850506,-3683.0,0.0002356,2]
[406758442,1772161850517,-500.0,0.00023595,2]
[406758443,1772161850526,-500.0,0.00023595,2]
[406758444,1772161850535,-500.0,0.00023595,2]
[406758445,1772161850547,-500.0,0.00023595,2]
[406758446,1772161850558,-500.0,0.00023595,2]
[406758447,1772161850567,-500.0,0.00023595,2]
[406758448,1772161850576,-339.91488498,0.00023595,2]
[406758449,1772161850586,-500.0,0.00023595,2]
[406758450,1772161850595,-500.0,0.00023595,2]
[406758451,1772161850605,-253.93762627,0.00023595,2]
[406758452,1772161850614,-199.72,0.00023671,2]
[406758453,1772161850624,-199.72,0.0002389,2]
[406758454,1772161850633,-199.72,0.0002411,2]
[406758455,1772161850642,-160.0,0.00024217,3]
[406758456,1772161850651,-191.98238551,0.00024284,18]
[406758457,1772161850660,-199.72,0.00024329,2]
[406758458,1772161850670,-255.95,0.00024485,2]
[406758459,1772161850679,-199.72,0.00024548,2]
[406758460,1772161850689,-199.72,0.00024548,2]
[406758461,1772161850698,-152.8213546,0.0002464,2]
[406758462,1772161850707,-150.0,0.00024658,2]
[406758463,1772161850717,-204.19,0.00025078,10]
[406758464,1772161850727,-150.0,0.0002589,2]
[406758465,1772161850737,-504.0,0.00025933,11]
[406758466,1772161850746,-150.0,0.0002633,2]
[406758467,1772161850756,-1340.0,0.0002633,2]
[406758468,1772161850765,-618.0,0.0002633,2]
[406758469,1772161850776,-1041.0,0.0002633,2]
[406758470,1772161850786,-1277.0,0.0002633,2]
[406758471,1772161850795,-1211.0,0.0002633,2]
[406758472,1772161850804,-921.0,0.0002633,2]
[406758473,1772161850815,-2456.0,0.0002633,2]
[406758474,1772161850825,-5983.0,0.0002633,2]
[406758475,1772161850835,-413.0,0.0002633,2]
[406758476,1772161850845,-321.61220745,0.00026339,22]
[406758477,1772161850855,-199.72,0.00026594,2]
[406758478,1772161850865,-326.31579311,0.00027024,24]
[406758479,1772161850875,-422.72533856,0.00027058,2]
[406758480,1772161850885,-152.8213546,0.00027104,2]
[406758481,1772161850895,-150.0,0.00027185,2]
[406758482,1772161850906,-155.90421945,0.00027369,2]
[406758483,1772161850915,-438.72,0.00027397,20]
[406758484,1772161850925,-300.0,0.00027397,2]
[406758485,1772161850935,-399.11457372,0.00027777,2]
[406758486,1772161850944,-150.0,0.00028544,2]
[406758487,1772161850954,-504.0,0.00028637,14]
[406758488,1772161850964,-199.72,0.00028639,2]
[406758489,1772161850974,-1041.0,0.0002933,2]
[406758490,1772161850984,-1211.0,0.0002933,2]
[406758491,1772161850994,-921.0,0.0002933,2]
[406758492,1772161851003,-2456.0,0.0002933,2]
[406758493,1772161851013,-5983.0,0.0002933,2]
[406758494,1772161851023,-413.0,0.0002933,2]
[406758495,1772161851034,-152.8213546,0.00029568,2]
[406758496,1772161851044,-446.72657865,0.00029765,30]
[406758497,1772161851054,-150.0,0.00029971,2]
[406758498,1772161851063,-7732.18620258,0.00030268,30]
[406758499,1772161851073,-199.72,0.00030685,2]
[406758500,1772161851083,-209.99304853,0.00031161,120]
[406758501,1772161851092,-222.28872477,0.00031161,120]
[406758502,1772161851102,-154.49167072,0.00031161,120]
[406758503,1772161851111,-193.41,0.000312,30]
[406758504,1772161851121,-504.0,0.0003134,16]
[406758505,1772161851130,-150.0,0.0003147,2]
[406758506,1772161851140,-500.0,0.00031486,120]
[406758507,1772161851149,-538.6368582,0.00031486,30]
[406758508,1772161851159,-213.29,0.00031512,2]
[406758509,1772161851168,-511.05171118,0.0003182,30]
[406758510,1772161851178,-518.5920254,0.00031999,10]
[406758511,1772161851187,-500.0,0.00031999,30]
[406758512,1772161851196,-174.00015664,0.00032,30]
[406758513,1772161851206,-160.0,0.00032,30]
[406758514,1772161851216,-150.77717153,0.00032099,30]
[406758515,1772161851225,-399.11457372,0.00032172,2]
[406758516,1772161851235,-1041.0,0.0003233,2]
[406758517,1772161851245,-1211.0,0.0003233,2]
[406758518,1772161851254,-921.0,0.0003233,2]
[406758519,1772161851263,-2456.0,0.0003233,2]
[406758520,1772161851273,-4871.517,0.0003233,2]
[406758521,1772161851282,-2000.0,0.000327,2]
[406758522,1772161851292,-1000.0,0.000327,2]
[406758523,1772161851301,-213.29,0.00032756,2]
[406758524,1772161851311,-816.0,0.00032877,11]
[406758525,1772161851321,-6488.25,0.000329,14]
[406758526,1772161851330,-4963.8,0.000329,14]
[406758527,1772161851339,-767.29,0.00032999,120]
[406758528,1772161851349,-274.32735207,0.00032999,14]
[406758529,1772161851359,-11296.02,0.00033,2]
[406758530,1772161851368,-1581.82,0.00033,14]
[406758531,1772161851379,-150.0,0.00033043,2]
[406758532,1772161851389,-183.0,0.00033252,120]
[406758533,1772161851399,-2020.0,0.000338,7]
[406758534,1772161851408,-2334.91618824,0.00033931,2]
[406758535,1772161851418,-500.0,0.0003398,7]
[406758536,1772161851427,-433.97,0.0003398,7]
[406758537,1772161851437,-8060.4470406,0.00034,3]
[406758538,1772161851447,-504.0,0.00034043,18]
[406758539,1772161851457,-1925.268721,0.0003446,2]
[406758540,1772161851466,-587.99715783,0.0003456,30]
[406758541,1772161851479,-17385.25272531,0.00034603,2]
[406758542,1772161851489,-276.81765236,0.00034603,2]
[406758543,1772161851499,-4844.0,0.00034685,2]
[406758544,1772161851510,-150.0,0.00034696,2]
[406758545,1772161851523,-151.0,0.000347,14]
[406758546,1772161851532,-151.0,0.00034703,30]
[406758547,1772161851542,-500.0,0.00034703,30]
[406758548,1772161851552,-500.0,0.00034703,30]
[406758549,1772161851562,-500.0,0.00034703,30]
[406758550,1772161851572,-6888.0,0.00034703,30]
[406758551,1772161851582,-500.0,0.00034703,30]
[406758552,1772161851592,-151.09479122,0.00034703,30]
[406758553,1772161851602,-200.0,0.00034703,30]
[406758554,1772161851612,-151.0,0.00034703,30]
[406758555,1772161851622,-505.76898208,0.00034703,30]
[406758556,1772161851632,-500.0,0.00034703,30]
[406758557,1772161851642,-518.5,0.00034703,30]
[406758558,1772161851651,-7142.856,0.00034703,30]
[406758559,1772161851661,-500.0,0.00034703,30]
[406758560,1772161851670,-216.23565274,0.00034703,30]
[406758561,1772161851680,-151.0,0.00034703,30]
[406758562,1772161851689,-500.0,0.00034703,30]
[406758563,1772161851699,-7407.141672,0.00034703,30]
[406758564,1772161851708,-500.0,0.00034703,30]
[406758565,1772161851717,-537.6845,0.00034703,30]
[406758566,1772161851727,-151.0,0.00034703,30]
[406758567,1772161851737,-500.0,0.00034703,30]
[406758568,1772161851746,-500.0,0.00034703,30]
[406758569,1772161851755,-7681.20591386,0.00034703,30]
[406758570,1772161851765,-579.67880189,0.00034703,30]
[406758571,1772161851774,-151.0,0.00034703,30]
[406758572,1772161851784,-500.0,0.00034703,30]
[406758573,1772161851794,-500.0,0.00034703,30]
[406758574,1772161851803,-7965.41053268,0.00034703,30]
[406758575,1772161851813,-202.72622012,0.00034703,30]
[406758576,1772161851823,-151.0,0.00034703,30]
[406758577,1772161851833,-500.0,0.00034703,30]
[406758578,1772161851843,-8260.13072239,0.00034703,30]
[406758579,1772161851852,-500.0,0.00034703,30]
[406758580,1772161851862,-151.0,0.00034703,30]
[406758581,1772161851871,-250.0,0.00034703,30]
[406758582,1772161851881,-500.0,0.00034703,30]
[406758583,1772161851891,-500.0,0.00034703,30]
[406758584,1772161851901,-1338.33623944,0.00034703,30]
[406758585,1772161851911,-500.0,0.00034703,30]
[406758586,1772161851921,-164.35193227,0.00034703,30]
[406758587,1772161851931,-250.0,0.00034703,30]
[406758588,1772161851940,-500.0,0.00034703,30]
[406758589,1772161851950,-646.36623167,0.00034703,30]
[406758590,1772161851959,-518.5,0.00034703,30]
[406758591,1772161851969,-250.0,0.00034703,30]
[406758592,1772161851979,-500.0,0.00034703,30]
[406758593,1772161851989,-537.6845,0.00034703,30]
[406758594,1772161851999,-250.0,0.00034703,30]
[406758595,1772161852009,-500.0,0.00034703,30]
[406758596,1772161852018,-557.5788265,0.00034703,30]
[406758597,1772161852028,-250.0,0.00034703,30]
[406758598,1772161852038,-500.0,0.00034703,30]
[406758599,1772161852047,-578.20924308,0.00034703,30]
[406758600,1772161852057,-250.0,0.00034703,30]
[406758601,1772161852066,-500.0,0.00034703,30]
[406758602,1772161852077,-287.98439631,0.00034703,30]
[406758603,1772161852087,-500.0,0.00034703,30]
[406758604,1772161852096,-1234.0,0.00034703,30]
[406758605,1772161852106,-520.0,0.00034703,30]
[406758606,1772161852116,-500.0,0.00034703,30]
[406758607,1772161852125,-250.0,0.00034703,30]
[406758608,1772161852135,-1234.0,0.00034703,30]
[406758609,1772161852144,-500.0,0.00034703,30]
[406758610,1772161852154,-539.24,0.00034703,30]
[406758611,1772161852163,-500.0,0.00034703,30]
[406758612,1772161852172,-256.63658865,0.00034703,30]
[406758613,1772161852182,-500.0,0.00034703,30]
[406758614,1772161852191,-559.19188,0.00034703,30]
[406758615,1772161852201,-500.0,0.00034703,30]
[406758616,1772161852210,-500.0,0.00034703,30]
[406758617,1772161852221,-500.0,0.00034703,30]
[406758618,1772161852232,-151.0,0.00034703,30]
[406758619,1772161852242,-189.804718,0.00034703,30]
[406758620,1772161852252,-579.88197956,0.00034703,30]
[406758621,1772161852262,-500.0,0.00034703,30]
[406758622,1772161852273,-156.587,0.00034703,30]
[406758623,1772161852282,-601.3376128,0.00034703,30]
[406758624,1772161852292,-278.99760038,0.00034703,30]
[406758625,1772161852302,-500.0,0.00034703,30]
[406758626,1772161852311,-623.58710448,0.00034703,30]
[406758627,1772161852321,-500.0,0.00034703,30]
[406758628,1772161852331,-1234.0,0.00034703,30]
[406758629,1772161852341,-646.65982734,0.00034703,30]
[406758630,1772161852350,-599.66537077,0.00034703,30]
[406758631,1772161852362,-1234.0,0.00034703,30]
[406758632,1772161852373,-278.92598564,0.00034703,30]
[406758633,1772161852383,-151.0,0.00034703,30]
[406758634,1772161852392,-1234.0,0.00034703,30]
[406758635,1772161852403,-289.4690772,0.00034703,30]
[406758636,1772161852414,-1234.0,0.00034703,30]
[406758637,1772161852424,-2000.0,0.00034703,30]
[406758638,1772161852433,-765.50111008,0.00034703,30]
[406758639,1772161852442,-2045.47432194,0.00034703,30]
[406758640,1772161852452,-151.0,0.00034703,30]
[406758641,1772161852462,-151.0,0.00034703,30]
[406758642,1772161852472,-151.0,0.00034703,30]
[406758643,1772161852484,-251.0,0.00034703,30]
[406758644,1772161852494,-151.0,0.00034703,30]
[406758645,1772161852504,-265.47741594,0.00034703,30]
[406758646,1772161852514,-500.0,0.00034703,30]
[406758647,1772161852525,-151.0,0.00034703,30]
[406758648,1772161852535,-500.0,0.00034703,30]
[406758649,1772161852546,-151.0,0.00034703,30]
[406758650,1772161852555,-500.0,0.00034703,30]
[406758651,1772161852567,-151.0,0.00034703,30]
[406758652,1772161852577,-500.0,0.00034703,30]
[406758653,1772161852587,-250.0,0.00034703,30]
[406758654,1772161852598,-151.0,0.00034703,30]
[406758655,1772161852609,-500.0,0.00034703,30]
[406758656,1772161852620,-250.0,0.00034703,30]
[406758657,1772161852631,-151.0,0.00034703,30]
[406758658,1772161852641,-500.0,0.00034703,30]
[406758659,1772161852650,-500.0,0.00034703,30]
[406758660,1772161852660,-250.0,0.00034703,30]
[406758661,1772161852670,-250.0,0.00034703,30]
[406758662,1772161852680,-151.0,0.00034703,30]
[406758663,1772161852689,-500.0,0.00034703,30]
[406758664,1772161852698,-500.0,0.00034703,30]
[406758665,1772161852710,-250.0,0.00034703,30]
[406758666,1772161852721,-250.0,0.00034703,30]
[406758667,1772161852730,-151.0,0.00034703,30]
[406758668,1772161852740,-500.0,0.00034703,30]
[406758669,1772161852750,-500.0,0.00034703,30]
[406758670,1772161852759,-534.80222857,0.00034703,30]
[406758671,1772161852769,-250.0,0.00034703,30]
[406758672,1772161852778,-284.97965945,0.00034703,30]
[406758673,1772161852788,-151.0,0.00034703,30]
[406758674,1772161852797,-518.5,0.00034703,30]
[406758675,1772161852807,-500.0,0.00034703,30]
[406758676,1772161852817,-250.0,0.00034703,30]
[406758677,1772161852826,-151.0,0.00034703,30]
[406758678,1772161852835,-537.6845,0.00034703,30]
[406758679,1772161852845,-500.0,0.00034703,30]
[406758680,1772161852855,-250.0,0.00034703,30]
[406758681,1772161852864,-151.0,0.00034703,30]
[406758682,1772161852874,-500.0,0.00034703,30]
[406758683,1772161852883,-557.5788265,0.00034703,30]
[406758684,1772161852893,-259.10294064,0.00034703,30]
[406758685,1772161852904,-151.0,0.00034703,30]
[406758686,1772161852913,-578.20924308,0.00034703,30]
[406758687,1772161852924,-500.0,0.00034703,30]
[406758688,1772161852933,-599.60298507,0.00034703,30]
[406758689,1772161852942,-500.0,0.00034703,30]
[406758690,1772161852952,-250.0,0.00034703,30]
[406758691,1772161852961,-151.0,0.00034703,30]
[406758692,1772161852971,-250.0,0.00034703,30]
[406758693,1772161852980,-500.0,0.00034703,30]
[406758694,1772161852990,-250.0,0.00034703,30]
[406758695,1772161852999,-621.78829552,0.00034703,30]
[406758696,1772161853009,-151.0,0.00034703,30]
[406758697,1772161853020,-250.0,0.00034703,30]
[406758698,1772161853030,-500.0,0.00034703,30]
[406758699,1772161853039,-644.79446246,0.00034703,30]
[406758700,1772161853049,-250.0,0.00034703,30]
[406758701,1772161853059,-250.0,0.00034703,30]
[406758702,1772161853068,-151.0,0.00034703,30]
[406758703,1772161853079,-668.65185757,0.00034703,30]
[406758704,1772161853088,-250.0,0.00034703,30]
[406758705,1772161853099,-250.0,0.00034703,30]
[406758706,1772161853269,-500.0,0.00034703,30]
[406758707,1772161853281,-151.0,0.00034703,30]
[406758708,1772161853291,-250.0,0.00034703,30]
[406758709,1772161853301,-326.23592954,0.00034703,30]
[406758710,1772161853312,-250.0,0.00034703,30]
[406758711,1772161853321,-500.0,0.00034703,30]
[406758712,1772161853330,-151.0,0.00034703,30]
[406758713,1772161853340,-250.0,0.00034703,30]
[406758714,1772161853350,-250.0,0.00034703,30]
[406758715,1772161853361,-500.0,0.00034703,30]
[406758716,1772161853371,-250.0,0.00034703,30]
[406758717,1772161853381,-250.0,0.00034703,30]
[406758718,1772161853391,-500.0,0.00034703,30]
[406758719,1772161853400,-253.48474784,0.00034703,30]
[406758720,1772161853410,-500.0,0.00034703,30]
[406758721,1772161853419,-500.0,0.00034703,30]
[406758722,1772161853428,-255.78372187,0.00034703,30]
[406758723,1772161853439,-500.0,0.00034703,30]
[406758724,1772161853448,-500.0,0.00034703,30]
[406758725,1772161853458,-500.0,0.00034703,30]
[406758726,1772161853467,-500.0,0.00034703,30]
[406758727,1772161853478,-620.0,0.00034703,30]
[406758728,1772161853488,-500.0,0.00034703,30]
[406758729,1772161853497,-500.0,0.00034703,30]
[406758730,1772161853506,-249.88699054,0.00034703,30]
[406758731,1772161853515,-500.0,0.00034703,30]
[406758732,1772161853526,-533.8509412,0.00034703,30]
[406758733,1772161853535,-500.0,0.00034703,30]
[406758734,1772161853545,-500.0,0.00034703,30]
[406758735,1772161853555,-500.0,0.00034703,30]
[406758736,1772161853564,-500.0,0.00034703,30]
[406758737,1772161853573,-500.0,0.00034703,30]
[406758738,1772161853583,-200.0,0.00034703,30]
[406758739,1772161853592,-250.0,0.00034703,30]
[406758740,1772161853601,-500.0,0.00034703,30]
[406758741,1772161853612,-200.0,0.00034703,30]
[406758742,1772161853622,-250.0,0.00034703,30]
[406758743,1772161853632,-500.0,0.00034703,30]
[406758744,1772161853642,-200.0,0.00034703,30]
[406758745,1772161853651,-250.0,0.00034703,30]
[406758746,1772161853661,-500.0,0.00034703,30]
[406758747,1772161853670,-200.0,0.00034703,30]
[406758748,1772161853680,-250.0,0.00034703,30]
[406758749,1772161853689,-582.78214508,0.00034703,30]
[406758750,1772161853698,-200.0,0.00034703,30]
[406758751,1772161853708,-250.0,0.00034703,30]
[406758752,1772161853717,-200.0,0.00034703,30]
[406758753,1772161853727,-250.0,0.00034703,30]
[406758754,1772161853737,-200.0,0.00034703,30]
[406758755,1772161853746,-250.0,0.00034703,30]
[406758756,1772161853756,-203.16821777,0.00034703,30]
[406758757,1772161853766,-255.58245543,0.00034703,30]
[406758758,1772161853775,-1048.48,0.000348,5]
[406758759,1772161853785,-150.0,0.0003488,2]
[406758760,1772161853795,-150.0,0.0003488,2]
[406758761,1772161853804,-150.0,0.0003488,2]
[406758762,1772161853814,-150.0,0.0003488,2]
[406758763,1772161853823,-154.7077688,0.0003488,2]
[406758764,1772161853833,-151.0,0.00034909,14]
[406758765,1772161853842,-104507.0246529,0.00034912,2]
[406758766,1772161853851,-52034.02148717,0.00034912,2]
[406758767,1772161853871,-380.14125594,0.00034912,2]
[406758768,1772161853931,-5642.70196642,0.00034912,2]
[406758769,1772161853948,-2583.6275441,0.00034912,2]
[406758770,1772161853959,-2112.68772881,0.00034912,2]
[406758771,1772161853970,-6023.04433623,0.00034912,2]
[406758772,1772161853981,-2357.61,0.00034912,2]